fUSD/lending_fUSD_20240922
["ID","MTS","AMOUNT","RATE_DAILY","PERIOD"]
[338887225,1727013032731,-7552.38164644,0.000129,2]
[338887227,1727013032741,-845.64,0.000129,2]
[338887229,1727013032751,-150.0,0.000129,2]
[338887230,1727013032761,-422.82,0.000129,2]
[338887233,1727013032771,-845.52,0.000129,2]
[338887236,1727013032782,-204.63828779,0.000129,2]
[338887239,1727013032792,-150.0,0.00012913,2]
[338887242,1727013032802,-168.71903338,0.00012928,2]
[338887244,1727013032812,-150.0,0.00012985,2]
[338887245,1727013032822,-191.8705803,0.0001299,2]
[338887246,1727013032831,-191.8705803,0.0001299,2]
[338887247,1727013032841,-151.6,0.0001299,2]
[338887248,1727013032851,-151.6,0.0001299,2]
[338887249,1727013032861,-151.6,0.0001299,2]
[338887250,1727013032870,-151.6,0.0001299,2]
[338887251,1727013032880,-151.6,0.0001299,2]
[338887252,1727013032891,-11001.4430092,0.00012996,2]
[338887253,1727013032900,-2825.7504562,0.00012996,2]
[338887254,1727013032910,-530.0839906,0.00012996,2]
[338887255,1727013032920,-11099.4620017,0.00012996,2]
[338887256,1727013032930,-444.6388872,0.00012996,2]
[338887257,1727013032940,-440.9796977,0.00012996,2]
[338887258,1727013032950,-14882.29,0.00012998,2]
[338887259,1727013032960,-311.65418896,0.00012999,2]
[338887260,1727013032970,-345.55873354,0.00012999,2]
[338887261,1727013032980,-1429.30534422,0.00012999,3]
[338887262,1727013032990,-500.0,0.00012999,2]
[338887263,1727013033000,-500.0,0.00012999,2]
[338887264,1727013033010,-500.0,0.00012999,2]
[338887265,1727013033020,-791.0,0.00013,2]
[338887266,1727013033029,-176.05001172,0.00013,2]
[338887267,1727013033039,-133471.09390674,0.00013,2]
[338887268,1727013033049,-173641.38864353,0.00013,2]
[338887269,1727013033062,-621.77146932,0.00013,2]
[338887270,1727013033075,-1099.97243844,0.00013,2]
[338887271,1727013033087,-489.58237976,0.00013,2]
[338887272,1727013033099,-270.54903608,0.00013,2]
[338887273,1727013033111,-9852.85409,0.00013,2]
[338887274,1727013033123,-429.8742519,0.00013,2]
[338887275,1727013033134,-398.17447697,0.00013,2]
[338887276,1727013033146,-431.15035491,0.00013,2]
[338887277,1727013033158,-2680.38836122,0.00013,2]
[338887278,1727013033170,-18321.40068856,0.00013,2]
[338887279,1727013033182,-378.25609224,0.00013,2]
[338887283,1727013038307,-329.50705356,0.000129,2]
[338887284,1727013038318,-2093.7463232,0.00012996,2]
[338887285,1727013038328,-764.0,0.00013,2]
[338887286,1727013038338,-76562.71037237,0.00013,2]
[338887287,1727013038416,-445.42957939,0.00013,2]
[338887288,1727013038474,-1599.21665465,0.00013,2]
[338887289,1727013038486,-10183.12300004,0.00013,2]
[338887290,1727013038533,-4059.32519846,0.00013,2]
[338887293,1727013039380,-2230.93232678,0.00013,2]
[338887294,1727013039391,-762.46678937,0.00013,2]
[338887295,1727013039405,-376.95401582,0.00013,2]
[338887296,1727013039416,-544.61761896,0.00013,2]
[338887297,1727013039427,-410.82807031,0.00013,2]
[338887298,1727013039438,-26501.48370032,0.00013,2]
[338887299,1727013039457,-536.49874892,0.00013,2]
[338887300,1727013039467,-963.55959246,0.00013,2]
[338887301,1727013041794,-1413.91866701,0.00013,2]
[338887302,1727013041808,-1131.59228596,0.00013,2]
[338887303,1727013041820,-1206.83348292,0.00013,2]
[338887304,1727013041831,-3537.73874138,0.00013,2]
[338887305,1727013041842,-615.61579363,0.00013,2]
[338887306,1727013041853,-674.47609604,0.00013,2]
[338887307,1727013041868,-730.55933782,0.00013,2]
[338887308,1727013041879,-500.0,0.00013,2]
[338887309,1727013041922,-1259.96086,0.00013,2]
[338887310,1727013041934,-565.57070375,0.00013,2]
[338887311,1727013041947,-2025.26791969,0.00013,2]
[338887312,1727013041959,-2794.89520789,0.00013,2]
[338887313,1727013041999,-10.0018671,0.00013,2]
[338887314,1727013042010,-376.30971041,0.00013,2]
[338887315,1727013042025,-495.55389865,0.00013,2]
[338887316,1727013042038,-722.9693,0.00013,2]
[338887317,1727013042048,-175781.83673794,0.00013,2]
[338887318,1727013042060,-286.34142508,0.00013,2]
[338887319,1727013042072,-396.3219215,0.00013,2]
[338887320,1727013042083,-300.4416464,0.00013,2]
[338887321,1727013042094,-3157.154,0.00013,2]
[338887322,1727013042114,-1333.31807868,0.00013,2]
[338887323,1727013042126,-650.0,0.00013,2]
[338887324,1727013042137,-1087.46169813,0.00013,2]
[338887325,1727013042154,-416514.48983504,0.00013,2]
[338887326,1727013042165,-1182.33,0.00013,2]
[338887327,1727013042174,-20480.0,0.00013,2]
[338887328,1727013042183,-2002.92904101,0.00013,2]
[338887329,1727013042194,-1100.0,0.00013,2]
[338887330,1727013042203,-3437453.21777133,0.00013,2]
[338887331,1727013042212,-225.77295,0.00013,2]
[338887333,1727013042222,-151.0,0.00013,2]
[338887335,1727013042231,-151.0,0.00013,2]
[338887337,1727013042241,-151.0,0.00013,2]
[338887339,1727013042250,-151.0,0.00013,2]
[338887341,1727013042260,-151.0,0.00013,2]
[338887343,1727013042269,-151.0,0.00013,2]
[338887344,1727013042278,-151.0,0.00013,2]
[338887346,1727013042287,-2989.17580372,0.00013,2]
[338887347,1727013042296,-1437869.64528552,0.00013,2]
[338887348,1727013042310,-151.0,0.00013,2]
[338887349,1727013042320,-170.44577,0.00013,2]
[338887350,1727013042330,-151.0,0.00013,2]
[338887351,1727013042340,-151.0,0.00013,2]
[338887352,1727013042349,-151.0,0.00013,2]
[338887353,1727013042358,-152.778972,0.00013,2]
[338887354,1727013042368,-177.542,0.00013,2]
[338887355,1727013042378,-178.13315,0.00013,2]
[338887356,1727013042387,-178.13315,0.00013,2]
[338887357,1727013042396,-178.13315,0.00013,2]
[338887358,1727013042405,-178.13315,0.00013,2]
[338887359,1727013042415,-178.13315,0.00013,2]
[338887360,1727013042424,-178.13315,0.00013,2]
[338887361,1727013042434,-178.13315,0.00013,2]
[338887362,1727013042443,-178.13315,0.00013,2]
[338887363,1727013042452,-178.13315,0.00013,2]
[338887364,1727013042462,-178.13315,0.00013,2]
[338887365,1727013042471,-178.13315,0.00013,2]
[338887366,1727013042480,-178.13315,0.00013,2]
[338887367,1727013042490,-178.13315,0.00013,2]
[338887368,1727013042501,-178.13315,0.00013,2]
[338887369,1727013042511,-151.0,0.00013,2]
[338887370,1727013042520,-151.383177,0.00013,2]
[338887371,1727013042531,-151.0,0.00013,2]
[338887372,1727013042540,-151.0,0.00013,2]
[338887373,1727013042551,-151.0,0.00013,2]
[338887374,1727013042560,-151.0,0.00013,2]
[338887375,1727013042570,-151.0,0.00013,2]
[338887376,1727013042579,-971.0,0.00013,2]
[338887377,1727013042588,-354.122058,0.00013,2]
[338887378,1727013042598,-258.090039,0.00013,2]
[338887379,1727013042607,-258.090039,0.00013,2]
[338887380,1727013042617,-151.0,0.00013,2]
[338887381,1727013042626,-151.0,0.00013,2]
[338887382,1727013042635,-151.0,0.00013,2]
[338887383,1727013042644,-151.0,0.00013,2]
[338887384,1727013042653,-151.0,0.00013,2]
[338887385,1727013042663,-151.0,0.00013,2]
[338887386,1727013042672,-293.249169,0.00013,2]
[338887387,1727013042681,-151.0,0.00013,2]
[338887388,1727013042691,-151.0,0.00013,2]
[338887389,1727013042701,-1000.0,0.00013,2]
[338887390,1727013042711,-1000.0,0.00013,2]
[338887391,1727013042722,-1000.0,0.00013,2]
[338887392,1727013042731,-1000.0,0.00013,2]
[338887393,1727013042741,-1000.0,0.00013,2]
[338887394,1727013042750,-1000.0,0.00013,2]
[338887395,1727013042759,-1000.0,0.00013,2]
[338887396,1727013042768,-1000.0,0.00013,2]
[338887397,1727013042777,-1000.0,0.00013,2]
[338887398,1727013042786,-1000.0,0.00013,2]
[338887399,1727013042796,-151.0,0.00013,2]
[338887400,1727013042806,-151.691143,0.00013,2]
[338887401,1727013042815,-2000.0,0.00013,2]
[338887402,1727013042824,-200.0,0.00013,2]
[338887403,1727013042834,-207.710512,0.00013,2]
[338887404,1727013042843,-207.710512,0.00013,2]
[338887405,1727013042853,-151.0,0.00013,2]
[338887406,1727013042863,-247.425141,0.00013,2]
[338887407,1727013042873,-223.434604,0.00013,2]
[338887408,1727013042882,-247.425141,0.00013,2]
[338887409,1727013042892,-713.666891,0.00013,2]
[338887410,1727013042901,-713.666891,0.00013,2]
[338887411,1727013042911,-208.436999,0.00013,2]
[338887412,1727013042921,-208.436999,0.00013,2]
[338887413,1727013042930,-151.0,0.00013,2]
[338887414,1727013042939,-324.210535,0.00013,2]
[338887415,1727013042949,-324.210535,0.00013,2]
[338887416,1727013042958,-151.0,0.00013,2]
[338887417,1727013042967,-309.775278,0.00013,2]
[338887418,1727013042977,-309.775278,0.00013,2]
[338887419,1727013042987,-151.0,0.00013,2]
[338887420,1727013042996,-694.020551,0.00013,2]
[338887421,1727013043006,-694.020551,0.00013,2]
[338887422,1727013043015,-2813.854536,0.00013,2]
[338887423,1727013043024,-2813.854536,0.00013,2]
[338887424,1727013043034,-151.0,0.00013,2]
[338887425,1727013043043,-151.0,0.00013,2]
[338887426,1727013043053,-151.0,0.00013,2]
[338887427,1727013043062,-151.878116,0.00013,2]
[338887428,1727013043071,-458.444351,0.00013,2]
[338887429,1727013043080,-154.629338,0.00013,2]
[338887430,1727013043089,-458.444351,0.00013,2]
[338887431,1727013043099,-154.629338,0.00013,2]
[338887432,1727013043108,-151.0,0.00013,2]
[338887433,1727013043117,-151.0,0.00013,2]
[338887434,1727013043126,-422.82,0.00013,2]
[338887435,1727013043136,-151.0,0.00013,2]
[338887436,1727013043145,-151.0,0.00013,2]
[338887437,1727013043155,-151.0,0.00013,2]
[338887438,1727013043164,-151.0,0.00013,2]
[338887439,1727013043173,-151.0,0.00013,2]
[338887440,1727013043182,-642.280007,0.00013,2]
[338887442,1727013043192,-151.0,0.00013,2]
[338887445,1727013043201,-642.280007,0.00013,2]
[338887448,1727013043210,-151.0,0.00013,2]
[338887450,1727013043219,-437.472048,0.00013,2]
[338887453,1727013043228,-4195.873243,0.00013,2]
[338887455,1727013043237,-437.472048,0.00013,2]
[338887457,1727013043247,-4195.873243,0.00013,2]
[338887459,1727013043257,-151.0,0.00013,2]
[338887461,1727013043267,-17377.08255388,0.00013,2]
[338887463,1727013043276,-625.0,0.00013,2]
[338887466,1727013043285,-21640.34977209,0.00013,2]
[338887467,1727013043294,-1262.0,0.00013,2]
[338887468,1727013043304,-448.0,0.00013,2]
[338887469,1727013043314,-1549.0,0.00013,2]
[338887470,1727013043323,-809.0,0.00013,2]
[338887471,1727013043333,-561.512,0.00013,2]
[338887472,1727013043342,-150.486,0.00013,2]
[338887473,1727013043352,-933.0,0.00013,2]
[338887474,1727013043362,-557.392,0.00013,2]
[338887475,1727013043371,-1903.0,0.00013,2]
[338887476,1727013043382,-3347.0,0.00013,2]
[338887477,1727013043392,-1913.0,0.00013,2]
[338887478,1727013043405,-806.0,0.00013,2]
[338887479,1727013043416,-252.647,0.00013,2]
[338887480,1727013043426,-1076.16942547,0.00013,2]
[338887481,1727013043437,-480.56310101,0.00013,2]
[338887482,1727013043447,-247.291,0.00013,2]
[338887483,1727013043458,-150.0,0.00013,2]
[338887484,1727013043468,-5867.0,0.00013,2]
[338887485,1727013043480,-1147.0,0.00013,2]
[338887486,1727013043490,-600.0,0.00013,2]
[338887487,1727013043500,-13492.0,0.00013,2]
[338887488,1727013043514,-250.0,0.00013,2]
[338887489,1727013043525,-1079.0,0.00013,2]
[338887490,1727013043536,-14733.49,0.00013,2]
[338887491,1727013043546,-151.0,0.00013005,2]
[338887492,1727013043557,-151.0,0.00013005,2]
[338887493,1727013043567,-151.0,0.00013005,2]
[338887494,1727013043578,-9548.7337073,0.00013005,2]
[338887495,1727013043589,-9659.1264651,0.00013005,2]
[338887496,1727013043601,-8218.7909285,0.00013005,2]
[338887497,1727013043611,-387.3797216,0.00013005,2]
[338887498,1727013043622,-384.1917507,0.00013005,2]
[338887499,1727013043633,-1824.1204067,0.00013005,2]
[338887500,1727013043643,-35565.0,0.00013014,2]
[338887501,1727013043652,-253.549941,0.00013014,2]
[338887502,1727013043662,-253.549941,0.00013014,2]
[338887503,1727013043671,-357.631653,0.00013014,2]
[338887504,1727013043682,-385.556894,0.00013014,2]
[338887505,1727013043692,-151.0,0.00013014,2]
[338887506,1727013043702,-357.631653,0.00013014,2]
[338887507,1727013043712,-385.556894,0.00013014,2]
[338887508,1727013043720,-151.0,0.00013014,2]
[338887509,1727013043730,-305.04538,0.00013014,2]
[338887510,1727013043740,-305.04538,0.00013014,2]
[338887511,1727013043750,-204.884156,0.00013014,2]
[338887512,1727013043761,-204.884156,0.00013014,2]
[338887513,1727013043771,-151.0,0.00013014,2]
[338887514,1727013043781,-151.0,0.00013014,2]
[338887516,1727013043792,-151.0,0.00013014,2]
[338887517,1727013043802,-2078.433348,0.00013014,2]
[338887518,1727013043811,-2078.433348,0.00013014,2]
[338887519,1727013043821,-2035.995714,0.00013014,2]
[338887520,1727013043831,-2035.995714,0.00013014,2]
[338887521,1727013043841,-4746.911012,0.00013014,2]
[338887522,1727013043851,-4746.911012,0.00013014,2]
[338887523,1727013043862,-151.0,0.00013014,2]
[338887524,1727013043872,-1057.408113,0.00013014,2]
[338887526,1727013043881,-151.0,0.00013014,2]
[338887528,1727013043891,-1057.408113,0.00013014,2]
[338887530,1727013043903,-330.120556,0.00013058,2]
[338887531,1727013043913,-327.4038037,0.00013058,2]
[338887532,1727013043924,-1554.4944901,0.00013058,2]
[338887533,1727013043935,-7552.38164643,0.00013067,2]
[338887534,1727013043945,-152.28907,0.00013067,2]
[338887535,1727013043954,-152.28907,0.00013067,2]
[338887536,1727013043963,-151.0,0.00013067,2]
[338887537,1727013043972,-151.0,0.00013067,2]
[338887538,1727013043981,-272.8613903,0.00013067,2]
[338887539,1727013043991,-270.6158568,0.00013067,2]
[338887540,1727013044000,-1284.8685736,0.00013067,2]
[338887541,1727013044010,-8096.0244053,0.00013076,2]
[338887542,1727013044019,-1428.095311,0.00013076,2]
[338887543,1727013044029,-1428.095311,0.00013076,2]
[338887544,1727013044039,-151.0,0.00013076,2]
[338887545,1727013044048,-151.0,0.00013076,2]
[338887546,1727013044058,-151.0,0.00013076,2]
[338887547,1727013044067,-151.0,0.00013076,2]
[338887548,1727013044077,-10000.0,0.00013076,2]
[338887549,1727013044086,-10000.0,0.00013076,2]
[338887550,1727013044095,-10000.0,0.00013076,2]
[338887551,1727013044104,-6778.4553918,0.00013076,2]
[338887552,1727013044114,-151.0,0.00013076,2]
[338887553,1727013044123,-623.19509,0.00013076,2]
[338887554,1727013044133,-151.0,0.00013076,2]
[338887555,1727013044142,-623.19509,0.00013076,2]
[338887556,1727013044152,-2280.275429,0.00013076,2]
[338887557,1727013044161,-2280.275429,0.00013076,2]
[338887558,1727013044171,-151.0,0.00013076,2]
[338887559,1727013044180,-151.0,0.00013076,2]
[338887560,1727013044190,-170.245124,0.00013076,2]
[338887561,1727013044199,-151.0,0.00013076,2]
[338887562,1727013044209,-170.245124,0.00013076,2]
[338887563,1727013044219,-618.50476,0.00013076,2]
[338887564,1727013044228,-209.87375,0.00013076,2]
[338887565,1727013044237,-618.50476,0.00013076,2]
[338887566,1727013044246,-209.87375,0.00013076,2]
[338887567,1727013044255,-215.6022247,0.00013076,2]
[338887568,1727013044265,-151.0,0.00013076,2]
[338887569,1727013044275,-151.0,0.00013076,2]
[338887570,1727013044284,-415.367126,0.00013076,2]
[338887571,1727013044293,-415.367126,0.00013076,2]
[338887572,1727013044302,-213.8279098,0.00013076,2]
[338887573,1727013044311,-151.0,0.00013076,2]
[338887575,1727013044321,-174.681075,0.00013076,2]
[338887577,1727013044330,-174.681075,0.00013076,2]
[338887579,1727013044340,-207.474658,0.00013076,2]
[338887581,1727013044350,-5056.796809,0.00013076,2]
[338887583,1727013044358,-207.474658,0.00013076,2]
[338887585,1727013044368,-5056.796809,0.00013076,2]
[338887587,1727013044377,-1015.242657,0.00013076,2]
[338887589,1727013044386,-1503.085045,0.00013085,2]
[338887591,1727013044395,-187.752874,0.00013085,2]
[338887593,1727013044405,-151.0,0.00013085,2]
[338887595,1727013044414,-1503.085045,0.00013085,2]
[338887597,1727013044423,-187.752874,0.00013085,2]
[338887599,1727013044432,-2353.444126,0.00013085,2]
[338887601,1727013044442,-2353.444126,0.00013085,2]
[338887603,1727013044451,-158.576022,0.00013085,2]
[338887605,1727013044460,-158.576022,0.00013085,2]
[338887607,1727013044469,-151.0,0.00013085,2]
[338887609,1727013044478,-572.536272,0.00013085,2]
[338887611,1727013044487,-572.536272,0.00013085,2]
[338887613,1727013044496,-175.182425,0.00013085,2]
[338887615,1727013044511,-175.182425,0.00013085,2]
[338887617,1727013044520,-221.786426,0.00013085,2]
[338887619,1727013044529,-221.786426,0.00013085,2]
[338887634,1727013044662,-185.285588,0.00013085,2]
[338887637,1727013044678,-185.285588,0.00013085,2]
[338887639,1727013044687,-151.0,0.00013085,2]
[338887641,1727013044696,-5338.1198552,0.00013091,2]
[338887643,1727013044706,-6643.3151033,0.00013094,2]
[338887645,1727013044716,-151.0,0.00013094,2]
[338887647,1727013044725,-2006.0,0.000131,14]
[338887649,1727013044735,-150.34,0.000131,2]
[338887651,1727013044744,-178.13315,0.0001313,2]
[338887653,1727013044753,-178.13315,0.0001313,2]
[338887655,1727013044762,-2000.0,0.0001313,2]
[338887657,1727013044771,-200.0,0.0001313,2]
[338887659,1727013044780,-799.0,0.00013167,2]
[338887661,1727013044789,-3897.7843186,0.0001318,2]
[338887663,1727013044798,-158.3430591,0.0001318,2]
[338887665,1727013044810,-157.0399628,0.0001318,2]
[338887667,1727013044820,-745.6167405,0.0001318,2]
[338887669,1727013044830,-5190.6058013,0.00013189,2]
[338887671,1727013044839,-7552.38164643,0.00013233,2]
[338887673,1727013044848,-2000.0,0.00013261,2]
[338887675,1727013044858,-200.0,0.00013261,2]
[338887677,1727013044867,-164.31038801,0.00013275,2]
[338887679,1727013044877,-3737.8964994,0.00013391,2]
[338887681,1727013044886,-200.0,0.00013394,2]
[338887683,1727013044896,-161.61428303,0.000134,2]
[338887685,1727013044905,-7552.38164643,0.000134,2]
[338887687,1727013044915,-1000.0,0.00013456,2]
[338887689,1727013044924,-207.710512,0.0001346,2]
[338887691,1727013044934,-207.710512,0.0001346,2]
[338887693,1727013044942,-247.425141,0.0001346,2]
[338887695,1727013044952,-247.425141,0.0001346,2]
[338887696,1727013044961,-713.666891,0.0001346,2]
[338887698,1727013044971,-713.666891,0.0001346,2]
[338887700,1727013044980,-208.436999,0.0001346,2]
[338887702,1727013044992,-208.436999,0.0001346,2]
[338887704,1727013045002,-324.210535,0.0001346,2]
[338887706,1727013045011,-324.210535,0.0001346,2]
[338887708,1727013045022,-303.96,0.00013466,2]
[338887711,1727013045032,-813.19,0.00013534,2]
[338887713,1727013045042,-7552.38164643,0.00013567,2]
[338887715,1727013045051,-151.0,0.00013631,2]
[338887717,1727013045068,-151.0,0.00013631,2]
[338887719,1727013045078,-151.0,0.00013631,2]
[338887721,1727013045088,-151.0,0.00013631,2]
[338887723,1727013045097,-309.775278,0.00013631,2]
[338887725,1727013045107,-309.775278,0.00013631,2]
[338887726,1727013045116,-151.0,0.00013631,2]
[338887728,1727013045126,-2813.854536,0.00013631,2]
[338887731,1727013045135,-2813.854536,0.00013631,2]
[338887733,1727013045145,-151.0,0.00013631,2]
[338887734,1727013045154,-151.0,0.00013631,2]
[338887736,1727013045164,-151.0,0.00013631,2]
[338887738,1727013045173,-458.444351,0.00013631,2]
[338887740,1727013045183,-154.629338,0.00013631,2]
[338887742,1727013045193,-458.444351,0.00013631,2]
[338887745,1727013045203,-154.629338,0.00013631,2]
[338887747,1727013045213,-151.0,0.00013631,2]
[338887749,1727013045224,-151.0,0.00013631,2]
[338887751,1727013045234,-437.472048,0.00013631,2]
[338887753,1727013045244,-4195.873243,0.00013631,2]
[338887755,1727013045254,-437.472048,0.00013631,2]
[338887757,1727013045263,-4195.873243,0.00013631,2]
[338887759,1727013045273,-151.0,0.00013631,2]
[338887761,1727013045284,-150.599077,0.00013631,2]
[338887763,1727013045294,-23374.07727,0.00013631,2]
[338887765,1727013045309,-1528.55597,0.00013631,2]
[338887767,1727013045318,-280.024433,0.00013631,2]
[338887769,1727013045328,-457.898033,0.00013631,2]
[338887771,1727013045337,-184.073224,0.00013631,2]
[338887773,1727013045347,-305.265356,0.00013631,2]
[338887775,1727013045356,-17632.081759,0.00013631,2]
[338887777,1727013045366,-410.702495,0.00013631,2]
[338887779,1727013045375,-164.31038801,0.0001365,2]
[338887781,1727013045384,-151.0,0.00013671,2]
[338887783,1727013045394,-151.0,0.00013671,2]
[338887785,1727013045403,-151.0,0.00013671,2]
[338887787,1727013045412,-151.0,0.00013671,2]
[338887789,1727013045423,-151.0,0.00013671,2]
[338887791,1727013045432,-642.280007,0.00013671,2]
[338887793,1727013045441,-151.0,0.00013671,2]
[338887795,1727013045450,-642.280007,0.00013671,2]
[338887797,1727013045460,-151.0,0.00013671,2]
[338887799,1727013045469,-283.61,0.00013671,2]
[338887801,1727013045479,-150.0,0.00013671,2]
[338887803,1727013045488,-150.0,0.00013671,2]
[338887805,1727013045498,-150.0,0.00013671,2]
[338887807,1727013045512,-150.0,0.00013671,2]
[338887809,1727013045522,-150.0,0.00013671,2]
[338887811,1727013045531,-150.0,0.00013671,2]
[338887813,1727013045540,-150.0,0.00013671,2]
[338887815,1727013045553,-150.0,0.00013671,2]
[338887817,1727013045563,-150.0,0.00013671,2]
[338887819,1727013045572,-150.0,0.00013671,2]
[338887821,1727013045582,-301.99,0.00013671,2]
[338887823,1727013045592,-162.96,0.00013671,2]
[338887825,1727013045602,-301.96,0.00013671,2]
[338887827,1727013045612,-1000.0,0.00013699,2]
[338887830,1727013045624,-1000.0,0.00013699,2]
[338887832,1727013045634,-1000.0,0.00013699,2]
[338887834,1727013045643,-1000.0,0.00013699,2]
[338887836,1727013045653,-1000.0,0.00013699,2]
[338887838,1727013045663,-1000.0,0.00013699,2]
[338887840,1727013045673,-1000.0,0.00013699,2]
[338887842,1727013045684,-1000.0,0.00013699,2]
[338887844,1727013045694,-1000.0,0.00013699,2]
[338887846,1727013045703,-1000.0,0.00013699,2]
[338887848,1727013045714,-1000.0,0.00013699,2]
[338887850,1727013045725,-1000.0,0.00013699,2]
[338887853,1727013045736,-1000.0,0.00013699,2]
[338887855,1727013045746,-1000.0,0.00013699,2]
[338887857,1727013045756,-1000.0,0.00013699,2]
[338887859,1727013045766,-1000.0,0.00013699,2]
[338887861,1727013045776,-1000.0,0.00013699,2]
[338887863,1727013045785,-1000.0,0.00013699,2]
[338887865,1727013045795,-1000.0,0.00013699,2]
[338887867,1727013045806,-1000.0,0.00013699,2]
[338887869,1727013045815,-1000.0,0.00013699,2]
[338887871,1727013045824,-1000.0,0.00013699,2]
[338887873,1727013045833,-1000.0,0.00013699,2]
[338887875,1727013045843,-1000.0,0.00013699,2]
[338887877,1727013045852,-1000.0,0.00013699,2]
[338887879,1727013045862,-1000.0,0.00013699,2]
[338887881,1727013045871,-1000.0,0.00013699,2]
[338887883,1727013045880,-1000.0,0.00013699,2]
[338887885,1727013045889,-1000.0,0.00013699,2]
[338887886,1727013045899,-792.224181,0.00013699,2]
[338887888,1727013045908,-792.224181,0.00013699,2]
[338887890,1727013045918,-778.0,0.00013699,2]
[338887892,1727013045927,-150.0,0.00013699,2]
[338887894,1727013045937,-151.0,0.00013699,2]
[338887896,1727013045946,-178.13315,0.00013699,2]
[338887898,1727013045957,-178.13315,0.00013699,2]
[338887901,1727013045968,-151.0,0.00013699,2]
[338887903,1727013045977,-151.0,0.00013699,2]
[338887905,1727013045989,-354.122058,0.00013699,2]
[338887907,1727013045999,-258.090039,0.00013699,2]
[338887909,1727013046009,-258.090039,0.00013699,2]
[338887912,1727013046018,-151.0,0.00013699,2]
[338887914,1727013046028,-162.406193,0.00013699,2]
[338887916,1727013046038,-151.0,0.00013699,2]
[338887918,1727013046047,-151.0,0.00013699,2]
[338887920,1727013046058,-151.0,0.00013699,2]
[338887922,1727013046068,-151.0,0.00013699,2]
[338887926,1727013046078,-151.0,0.00013699,2]
[338887927,1727013046088,-151.0,0.00013699,2]
[338887929,1727013046097,-694.020551,0.00013699,2]
[338887931,1727013046106,-694.020551,0.00013699,2]
[338887933,1727013046115,-151.0,0.00013699,2]
[338887935,1727013046125,-151.0,0.00013699,2]
[338887937,1727013046135,-151.0,0.00013699,2]
[338887939,1727013046144,-792.224181,0.00013699,2]
[338887941,1727013046154,-792.224181,0.00013699,2]
[338887943,1727013046163,-253.549941,0.00013699,2]
[338887945,1727013046172,-253.549941,0.00013699,2]
[338887947,1727013046182,-357.631653,0.00013699,2]
[338887949,1727013046191,-385.556894,0.00013699,2]
[338887951,1727013046200,-151.0,0.00013699,2]
[338887953,1727013046210,-357.631653,0.00013699,2]
[338887954,1727013046219,-385.556894,0.00013699,2]
[338887956,1727013046228,-151.0,0.00013699,2]
[338887958,1727013046237,-305.04538,0.00013699,2]
[338887960,1727013046247,-305.04538,0.00013699,2]
[338887962,1727013046255,-204.884156,0.00013699,2]
[338887964,1727013046264,-204.884156,0.00013699,2]
[338887966,1727013046273,-151.0,0.00013699,2]
[338887968,1727013046283,-151.0,0.00013699,2]
[338887970,1727013046293,-151.0,0.00013699,2]
[338887972,1727013046304,-2078.433348,0.00013699,2]
[338887974,1727013046314,-152.28907,0.00013699,2]
[338887976,1727013046324,-2078.433348,0.00013699,2]